fUST/lending_fUST_20250719
["ID","MTS","AMOUNT","RATE_DAILY","PERIOD"]
[373151807,1752885052768,-151.0,0.00020548,2]
[373151808,1752885052780,-161.7831985,0.00020548,2]
[373151809,1752885052789,-151.0,0.00020548,2]
[373151810,1752885052799,-297.902845,0.00020555,2]
[373151811,1752885052809,-1000.0,0.00020573,2]
[373151812,1752885052818,-153.0,0.00020603,2]
[373151813,1752885052828,-332.0,0.00020625,2]
[373151814,1752885052838,-2010.47259324,0.00020659,3]
[373151815,1752885052847,-642.0,0.000207,2]
[373151816,1752885052856,-151.0,0.00020739,2]
[373151817,1752885052865,-114795.64142501,0.00020739,2]
[373151818,1752885053256,-442.69417391,0.00016438,2]
[373151819,1752885053266,-460.0,0.00016438,2]
[373151820,1752885053276,-460.0,0.00016438,2]
[373151821,1752885053287,-460.0,0.00016438,2]
[373151822,1752885053296,-386.67309016,0.00016712,2]
[373151823,1752885053309,-73.32690984,0.00016712,2]
[373151824,1752885053319,-460.0,0.00016986,2]
[373151825,1752885053328,-904.45,0.0001726,2]
[373151826,1752885053338,-460.0,0.0001726,2]
[373151827,1752885053347,-904.45,0.00017534,2]
[373151828,1752885053357,-904.45,0.00017808,2]
[373151829,1752885053366,-942.13,0.00018082,2]
[373151830,1752885053376,-904.45,0.00018082,2]
[373151831,1752885053385,-942.13,0.00018356,2]
[373151832,1752885053396,-942.13,0.0001863,2]
[373151833,1752885053405,-497.05,0.00019178,2]
[373151834,1752885053414,-497.05,0.00019452,2]
[373151835,1752885053425,-497.05,0.00019726,2]
[373151836,1752885053435,-497.05,0.0002,2]
[373151837,1752885053444,-497.05,0.00020273,2]
[373151838,1752885053453,-497.05,0.00020547,2]
[373151839,1752885053463,-500.0,0.00020548,2]
[373151840,1752885053472,-18754.67859016,0.00020739,2]
[373151841,1752885053584,-343.32,0.00016428,3]
[373151842,1752885053593,-176.15999996,0.00017798,3]
[373151843,1752885053605,-510.48000004,0.00017798,3]
[373151844,1752885053615,-143.97999996,0.00018356,2]
[373151845,1752885053626,-438.30177485,0.00018356,2]
[373151846,1752885053638,-322.16822519,0.00018356,2]
[373151847,1752885053647,-861.27491889,0.00018904,2]
[373151848,1752885053660,-80.85508111,0.00018904,2]
[373151849,1752885053669,-251.58607919,0.00019178,2]
[373151850,1752885053874,-460.0,0.00016438,2]
[373151851,1752885053885,-460.0,0.00016438,2]
[373151852,1752885053894,-460.0,0.00016438,2]
[373151853,1752885053903,-460.0,0.00016712,2]
[373151854,1752885053913,-460.0,0.00016712,2]
[373151855,1752885053923,-460.0,0.00016986,2]
[373151856,1752885053932,-460.0,0.00016986,2]
[373151857,1752885053942,-460.0,0.0001726,2]
[373151858,1752885053951,-904.45,0.0001863,2]
[373151859,1752885053961,-904.45,0.00018904,2]
[373151860,1752885053971,-690.54392081,0.00019178,2]
[373151861,1752885053981,-904.45,0.00019178,2]
[373151862,1752885053991,-942.13,0.00019452,2]
[373151863,1752885054000,-904.45,0.00019452,2]
[373151864,1752885054010,-942.13,0.00019726,2]
[373151865,1752885054020,-942.13,0.0002,2]
[373151866,1752885054031,-942.13,0.00020273,2]
[373151867,1752885054048,-942.13,0.00020547,2]
[373151868,1752885054058,-51771.45342917,0.00020739,2]
[373151869,1752885054067,-173.0,0.00020767,3]
[373151870,1752885054077,-1169.8,0.00020821,2]
[373151871,1752885054087,-84.16176129,0.00020821,2]
[373151872,1752885054099,-867.48823871,0.00020821,2]
[373151873,1752885054109,-926.15,0.00020821,2]
[373151874,1752885054120,-460.0,0.00020821,2]
[373151875,1752885054131,-353.21,0.00020821,2]
[373151876,1752885054141,-2337.34,0.00020821,2]
[373151877,1752885054151,-1061.06,0.00020821,2]
[373151878,1752885054161,-460.0,0.00020821,2]
[373151879,1752885054170,-806.83,0.00020821,2]
[373151880,1752885054180,-1589.71,0.00020821,2]
[373151881,1752885054190,-620.87556716,0.00020821,2]
[373151882,1752885054214,-460.0,0.00017534,2]
[373151883,1752885054224,-64.94624002,0.00020821,2]
[373151884,1752885054236,-155.59819282,0.00020821,2]
[373151885,1752885054246,-861.43,0.00020821,2]
[373151886,1752885054255,-2257.55,0.00020821,2]
[373151887,1752885054265,-552.26685249,0.00020821,2]
[373151888,1752885054275,-984.3,0.00020821,2]
[373151889,1752885054288,-460.0,0.00020821,2]
[373151890,1752885054297,-460.0,0.00020821,2]
[373151891,1752885054307,-497.05,0.00020821,2]
[373151892,1752885054386,-942.13,0.00020821,2]
[373151893,1752885054413,-500.0,0.00020822,2]
[373151894,1752885054423,-151.0,0.00020822,2]
[373151895,1752885054433,-500.0,0.00020822,2]
[373151896,1752885054444,-332.0,0.00020823,2]
[373151897,1752885054453,-332.0,0.00020846,2]
[373151898,1752885054463,-75.12449869,0.000209,2]
[373151899,1752885054475,-174.80728946,0.000209,2]
[373151900,1752885054485,-329.02271054,0.00020926,2]
[373151901,1752885152757,34369.55945393,0.00016338,2]
[373151902,1752885343908,24900.0,0.00015851,2]
[373151903,1752885408829,417.58020051,0.00016338,2]
[373151905,1752885527727,427.76809,0.00013699,2]
[373151906,1752885679118,365.38267542,0.00016338,2]
[373151913,1752885950405,319.70984101,0.00016338,2]
[373151918,1752886031513,-1200.0,0.00016436,2]
[373151919,1752886031534,-300.0,0.00016437,2]
[373151920,1752886031555,-235.0,0.00016437,2]
[373151921,1752886031578,-1200.0,0.00016437,2]
[373151922,1752886031602,-300.0,0.00016437,2]
[373151923,1752886031626,-460.0,0.00016438,2]
[373151924,1752886031649,-460.0,0.00016438,2]
[373151925,1752886031673,-59.46672033,0.00016438,2]
[373151926,1752886157542,-300.0,0.00016437,2]
[373151927,1752886157565,-460.0,0.00016438,2]
[373151928,1752886157586,-460.0,0.00016438,2]
[373151929,1752886157607,-460.0,0.00016438,2]
[373151930,1752886157630,-460.0,0.00016438,2]
[373151931,1752886157651,-460.0,0.00016438,2]
[373151932,1752886157673,-1157.36,0.00016438,2]
[373151933,1752886157695,-460.0,0.00016438,2]
[373151934,1752886157717,-460.0,0.00016438,2]
[373151935,1752886157739,-460.0,0.00016438,2]
[373151936,1752886157761,-460.0,0.00016438,2]
[373151937,1752886157782,-460.0,0.00016438,2]
[373151938,1752886157802,-460.0,0.00016438,2]
[373151939,1752886157823,-460.0,0.00016438,2]
[373151940,1752886157844,-460.0,0.00016438,2]
[373151941,1752886157865,-460.0,0.00016438,2]
[373151942,1752886157886,-517.48,0.00016438,2]
[373151943,1752886157907,-460.0,0.00016438,2]
[373151944,1752886157928,-460.0,0.00016438,2]
[373151945,1752886157949,-460.0,0.00016438,2]
[373151946,1752886157973,-460.0,0.00016438,2]
[373151947,1752886157999,-460.0,0.00016438,2]
[373151948,1752886158020,-460.0,0.00016438,2]
[373151949,1752886158042,-460.0,0.00016438,2]
[373151950,1752886158063,-460.0,0.00016438,2]
[373151951,1752886158086,-460.0,0.00016438,2]
[373151952,1752886158107,-460.0,0.00016438,2]
[373151953,1752886158129,-460.0,0.00016438,2]
[373151954,1752886158151,-460.0,0.00016438,2]
[373151955,1752886158172,-460.0,0.00016438,2]
[373151956,1752886158193,-460.0,0.00016438,2]
[373151957,1752886158215,-460.0,0.00016438,2]
[373151958,1752886158237,-460.0,0.00016438,2]
[373151959,1752886158259,-460.0,0.00016438,2]
[373151960,1752886158281,-2687.98,0.00016438,2]
[373151961,1752886158303,-460.0,0.00016438,2]
[373151962,1752886158323,-438.94557515,0.00016438,2]
[373151963,1752886158355,-460.0,0.00016438,2]
[373151964,1752886158382,-460.0,0.00016438,2]
[373151965,1752886158408,-547.12552507,0.00016438,2]
[373151966,1752886158429,-460.0,0.00016438,2]
[373151967,1752886158451,-460.0,0.00016438,2]
[373151968,1752886158472,-460.0,0.00016438,2]
[373151969,1752886158495,-460.0,0.00016438,2]
[373151970,1752886158517,-262.615946,0.00016438,2]
[373151971,1752886158540,-1078.39,0.00016438,2]
[373151972,1752886158562,-917.31,0.00016438,2]
[373151973,1752886158584,-460.0,0.00016438,2]
[373151974,1752886158605,-460.0,0.00016438,2]
[373151975,1752886158628,-1788.95,0.00016438,2]
[373151976,1752886158649,-460.0,0.00016438,2]
[373151977,1752886158670,-460.0,0.00016438,2]
[373151978,1752886158690,-460.0,0.00016438,2]
[373151979,1752886158712,-460.0,0.00016438,2]
[373151980,1752886158734,-460.0,0.00016438,2]
[373151981,1752886158757,-460.0,0.00016438,2]
[373151982,1752886158779,-1015.49,0.00016438,2]
[373151983,1752886158800,-460.0,0.00016438,2]
[373151984,1752886158822,-460.0,0.00016438,2]
[373151985,1752886158843,-460.0,0.00016438,2]
[373151986,1752886158865,-460.0,0.00016438,2]
[373151987,1752886158889,-460.0,0.00016438,2]
[373151988,1752886158910,-460.0,0.00016438,2]
[373151989,1752886158933,-460.0,0.00016438,2]
[373151990,1752886158955,-460.0,0.00016438,2]
[373151991,1752886158976,-494.3367009,0.00016438,2]
[373151992,1752886158998,-460.0,0.00016438,2]
[373151993,1752886159023,-460.0,0.00016438,2]
[373151994,1752886159045,-470.17810872,0.00016438,2]
[373151995,1752886159067,-460.0,0.00016438,2]
[373151996,1752886159089,-460.0,0.00016438,2]
[373151997,1752886159111,-460.0,0.00016438,2]
[373151998,1752886159134,-460.0,0.00016438,2]
[373151999,1752886159155,-460.0,0.00016438,2]
[373152000,1752886159176,-464.39187266,0.00016438,2]
[373152001,1752886159199,-460.0,0.00016438,2]
[373152002,1752886159221,-460.0,0.00016438,2]
[373152003,1752886159244,-512.43,0.00016438,2]
[373152004,1752886159268,-460.0,0.00016438,2]
[373152005,1752886159290,-460.0,0.00016438,2]
[373152006,1752886159314,-460.0,0.00016438,2]
[373152007,1752886159335,-460.0,0.00016438,2]
[373152008,1752886159356,-460.0,0.00016438,2]
[373152009,1752886159381,-460.0,0.00016438,2]
[373152010,1752886159404,-473.4009991,0.00016438,2]
[373152011,1752886159427,-460.0,0.00016438,2]
[373152012,1752886159451,-460.0,0.00016438,2]
[373152013,1752886159473,-460.0,0.00016438,2]
[373152014,1752886159496,-460.0,0.00016438,2]
[373152015,1752886159520,-1094.52,0.00016438,2]
[373152016,1752886159543,-1520.39,0.00016438,2]
[373152017,1752886159566,-460.0,0.00016438,2]
[373152018,1752886159589,-694.12,0.00016438,2]
[373152019,1752886159611,-460.0,0.00016438,2]
[373152020,1752886159633,-460.0,0.00016438,2]
[373152021,1752886159654,-460.0,0.00016438,2]
[373152022,1752886159677,-2534.46,0.00016438,2]
[373152023,1752886159699,-473.39,0.00016438,2]
[373152024,1752886159720,-460.0,0.00016438,2]
[373152025,1752886159742,-460.0,0.00016438,2]
[373152026,1752886159766,-460.0,0.00016438,2]
[373152027,1752886159788,-460.0,0.00016438,2]
[373152028,1752886159811,-460.0,0.00016438,2]
[373152029,1752886159836,-460.0,0.00016438,2]
[373152030,1752886159857,-460.0,0.00016438,2]
[373152031,1752886159879,-460.0,0.00016438,2]
[373152032,1752886159901,-460.0,0.00016438,2]
[373152033,1752886159923,-460.0,0.00016438,2]
[373152034,1752886159944,-460.0,0.00016438,2]
[373152035,1752886160097,-76.7352724,0.00016438,2]
[373152038,1752886222867,279.74611091,0.00016338,2]
[373152084,1752886238618,-300.0,0.00016437,2]
[373152085,1752886238628,-196.0,0.00016437,2]
[373152086,1752886238638,-383.2647276,0.00016438,2]
[373152087,1752886238647,-460.0,0.00016438,2]
[373152088,1752886238656,-460.0,0.00016438,2]
[373152089,1752886238666,-460.0,0.00016438,2]
[373152090,1752886238675,-460.0,0.00016438,2]
[373152091,1752886238685,-460.0,0.00016438,2]
[373152092,1752886238694,-460.0,0.00016438,2]
[373152093,1752886238704,-1302.06,0.00016438,2]
[373152094,1752886238713,-460.0,0.00016438,2]
[373152095,1752886238722,-460.0,0.00016438,2]
[373152096,1752886238731,-460.0,0.00016438,2]
[373152097,1752886238741,-460.0,0.00016438,2]
[373152098,1752886238750,-460.0,0.00016438,2]
[373152099,1752886238759,-460.0,0.00016438,2]
[373152100,1752886238769,-460.0,0.00016438,2]
[373152101,1752886238779,-460.0,0.00016438,2]
[373152102,1752886238788,-460.0,0.00016438,2]
[373152103,1752886238798,-460.0,0.00016438,2]
[373152104,1752886238808,-465.96552411,0.00016438,2]
[373152105,1752886238818,-460.0,0.00016438,2]
[373152106,1752886238828,-460.0,0.00016438,2]
[373152107,1752886238838,-461.59381483,0.00016438,2]
[373152108,1752886238848,-460.0,0.00016438,2]
[373152109,1752886238858,-460.0,0.00016438,2]
[373152110,1752886238867,-460.0,0.00016438,2]
[373152111,1752886238878,-460.0,0.00016438,2]
[373152112,1752886238889,-460.0,0.00016438,2]
[373152113,1752886238898,-460.0,0.00016438,2]
[373152114,1752886238909,-460.0,0.00016438,2]
[373152115,1752886238918,-460.0,0.00016438,2]
[373152116,1752886238928,-460.0,0.00016438,2]
[373152117,1752886238938,-460.0,0.00016438,2]
[373152118,1752886238950,-460.0,0.00016438,2]
[373152119,1752886238960,-460.0,0.00016438,2]
[373152120,1752886238970,-460.0,0.00016438,2]
[373152121,1752886238980,-460.0,0.00016438,2]
[373152122,1752886238990,-460.0,0.00016438,2]
[373152123,1752886239000,-460.0,0.00016438,2]
[373152124,1752886239010,-460.0,0.00016438,2]
[373152125,1752886239020,-460.0,0.00016438,2]
[373152126,1752886239031,-460.0,0.00016438,2]
[373152127,1752886239042,-460.0,0.00016438,2]
[373152128,1752886239052,-460.0,0.00016438,2]
[373152129,1752886239062,-460.0,0.00016438,2]
[373152130,1752886239072,-460.0,0.00016438,2]
[373152131,1752886239083,-1036.57,0.00016438,2]
[373152132,1752886239094,-460.0,0.00016438,2]
[373152133,1752886239103,-460.0,0.00016438,2]
[373152134,1752886239113,-460.0,0.00016438,2]
[373152135,1752886239123,-460.0,0.00016438,2]
[373152136,1752886239133,-460.0,0.00016438,2]
[373152137,1752886239145,-460.0,0.00016438,2]
[373152138,1752886239155,-516.59,0.00016438,2]
[373152139,1752886239165,-460.0,0.00016438,2]
[373152140,1752886239175,-460.0,0.00016438,2]
[373152141,1752886239184,-460.0,0.00016438,2]
[373152142,1752886239195,-1224.83,0.00016438,2]
[373152143,1752886239205,-460.0,0.00016438,2]
[373152144,1752886239215,-460.0,0.00016438,2]
[373152145,1752886239225,-460.0,0.00016438,2]
[373152146,1752886239235,-1354.52,0.00016438,2]
[373152147,1752886239247,-460.0,0.00016438,2]
[373152148,1752886239257,-460.0,0.00016438,2]
[373152149,1752886239266,-460.0,0.00016438,2]
[373152150,1752886239276,-460.0,0.00016438,2]
[373152151,1752886239286,-460.0,0.00016438,2]
[373152152,1752886239296,-460.0,0.00016438,2]
[373152153,1752886239306,-460.0,0.00016438,2]
[373152154,1752886239316,-813.15,0.00016438,2]
[373152155,1752886239325,-3359.4,0.00016438,2]
[373152156,1752886239335,-460.0,0.00016438,2]
[373152157,1752886239345,-460.0,0.00016438,2]
[373152158,1752886239355,-460.0,0.00016438,2]
[373152159,1752886239515,-397.23148048,0.00016438,2]
[373152160,1752886239524,-460.0,0.00016438,2]
[373152161,1752886239534,-460.0,0.00016438,2]
[373152162,1752886239543,-460.0,0.00016438,2]
[373152163,1752886239553,-460.0,0.00016438,2]
[373152164,1752886239563,-155.0,0.00016438,2]
[373152165,1752886239572,-460.0,0.00016438,2]
[373152166,1752886239583,-481.05297076,0.00016438,2]
[373152167,1752886239592,-2239.47,0.00016438,2]
[373152168,1752886239602,-460.0,0.00016438,2]
[373152169,1752886239611,-460.0,0.00016438,2]
[373152170,1752886239621,-460.0,0.00016438,2]
[373152171,1752886239631,-460.0,0.00016438,2]
[373152172,1752886239640,-460.0,0.00016438,2]
[373152173,1752886239650,-460.0,0.00016438,2]
[373152174,1752886239659,-1200.61,0.00016438,2]
[373152175,1752886239668,-460.0,0.00016438,2]
[373152176,1752886239678,-460.0,0.00016438,2]
[373152177,1752886239687,-460.0,0.00016438,2]
[373152178,1752886239696,-460.0,0.00016438,2]
[373152179,1752886239705,-212.14942934,0.00016438,2]
[373152180,1752886239715,-460.0,0.00016438,2]
[373152181,1752886239725,-460.0,0.00016438,2]
[373152182,1752886239735,-465.28303503,0.00016438,2]
[373152183,1752886239747,-460.0,0.00016438,2]
[373152184,1752886239764,-460.0,0.00016438,2]
[373152185,1752886239773,-484.74,0.00016438,2]
[373152186,1752886239783,-460.0,0.00016438,2]
[373152187,1752886239793,-460.0,0.00016438,2]
[373152188,1752886239802,-460.0,0.00016438,2]
[373152189,1752886239811,-460.0,0.00016438,2]
[373152190,1752886239829,-616.28,0.00016438,2]
[373152191,1752886239841,-1372.52355289,0.00016438,2]
[373152192,1752886239851,-500.0,0.00016438,2]
[373152193,1752886239861,-1000.0,0.00016512,2]
[373152194,1752886239871,-34299.1342112,0.00016612,2]
[373152195,1752886239881,-460.0,0.00016711,2]
[373152196,1752886239892,-460.0,0.00016711,2]
[373152197,1752886239902,-460.0,0.00016711,2]
[373152198,1752886239912,-460.0,0.00016711,2]
[373152199,1752886239922,-460.0,0.00016712,2]
[373152200,1752886239933,-460.0,0.00016712,2]
[373152201,1752886239943,-464.20634618,0.00016712,2]
[373152202,1752886239954,-1157.36,0.00016712,2]
[373152203,1752886239964,-460.0,0.00016712,2]
[373152204,1752886239974,-460.0,0.00016712,2]
[373152206,1752886239984,-460.0,0.00016712,2]
[373152208,1752886239994,-460.0,0.00016712,2]
[373152209,1752886240005,-460.0,0.00016712,2]
[373152210,1752886240015,-460.0,0.00016712,2]
[373152211,1752886240024,-460.0,0.00016712,2]
[373152212,1752886240035,-460.0,0.00016712,2]
[373152213,1752886240045,-460.0,0.00016712,2]
[373152214,1752886240055,-460.0,0.00016712,2]
[373152215,1752886240064,-460.0,0.00016712,2]
[373152216,1752886240074,-460.0,0.00016712,2]
[373152217,1752886240085,-460.0,0.00016712,2]
[373152218,1752886240095,-460.0,0.00016712,2]
[373152219,1752886240105,-460.0,0.00016712,2]
[373152220,1752886240115,-460.0,0.00016712,2]
[373152221,1752886240125,-460.0,0.00016712,2]
[373152222,1752886240135,-460.0,0.00016712,2]
[373152223,1752886240145,-460.0,0.00016712,2]
[373152224,1752886240155,-460.0,0.00016712,2]
[373152225,1752886240165,-917.31,0.00016712,2]
[373152226,1752886240176,-460.0,0.00016712,2]
[373152227,1752886240186,-460.0,0.00016712,2]
[373152228,1752886240195,-460.0,0.00016712,2]
[373152229,1752886240206,-460.0,0.00016712,2]
[373152230,1752886240215,-460.0,0.00016712,2]
[373152231,1752886240226,-460.0,0.00016712,2]
[373152232,1752886240236,-460.0,0.00016712,2]
[373152233,1752886240246,-460.0,0.00016712,2]
[373152234,1752886240256,-460.0,0.00016712,2]
[373152235,1752886240266,-460.0,0.00016712,2]
[373152236,1752886240276,-460.0,0.00016712,2]
[373152237,1752886240286,-460.0,0.00016712,2]
[373152238,1752886240296,-460.0,0.00016712,2]
[373152239,1752886240306,-460.0,0.00016712,2]
[373152240,1752886240316,-591.82008803,0.00016712,2]
[373152241,1752886240325,-460.0,0.00016712,2]
[373152242,1752886240335,-460.0,0.00016712,2]
[373152243,1752886240345,-460.0,0.00016712,2]
[373152244,1752886240356,-460.0,0.00016712,2]
[373152245,1752886240366,-1094.52,0.00016712,2]
[373152246,1752886240376,-1520.39,0.00016712,2]
[373152247,1752886240386,-460.0,0.00016712,2]
[373152248,1752886240400,-694.12,0.00016712,2]
[373152250,1752886240410,-460.0,0.00016712,2]
[373152252,1752886240420,-460.0,0.00016712,2]
[373152254,1752886240430,-473.39,0.00016712,2]
[373152256,1752886240442,-460.0,0.00016712,2]
[373152259,1752886240456,-2534.46,0.00016712,2]
[373152260,1752886240467,-460.0,0.00016712,2]
[373152262,1752886240478,-460.0,0.00016712,2]
[373152264,1752886240487,-460.0,0.00016712,2]
[373152265,1752886240497,-460.0,0.00016712,2]
[373152266,1752886240508,-460.0,0.00016712,2]
[373152268,1752886240518,-460.0,0.00016712,2]
[373152270,1752886240528,-460.0,0.00016712,2]
[373152272,1752886240538,-460.0,0.00016712,2]
[373152274,1752886240548,-460.0,0.00016712,2]
[373152276,1752886240558,-460.0,0.00016712,2]
[373152278,1752886240568,-460.0,0.00016712,2]
[373152280,1752886240579,-206.7,0.00016712,2]
[373152282,1752886240589,-460.0,0.00016712,2]
[373152284,1752886240598,-460.0,0.00016712,2]
[373152286,1752886240608,-460.0,0.00016712,2]
[373152288,1752886240618,-460.0,0.00016712,2]
[373152290,1752886240628,-1302.06,0.00016712,2]
[373152293,1752886240638,-460.0,0.00016712,2]
[373152294,1752886240648,-460.0,0.00016712,2]
[373152297,1752886240657,-460.0,0.00016712,2]
[373152299,1752886240667,-460.0,0.00016712,2]
[373152300,1752886240676,-460.0,0.00016712,2]
[373152302,1752886240686,-460.0,0.00016712,2]
[373152305,1752886240695,-460.0,0.00016712,2]
[373152307,1752886240705,-460.0,0.00016712,2]
[373152308,1752886240714,-460.0,0.00016712,2]
[373152311,1752886240724,-460.0,0.00016712,2]
[373152313,1752886240734,-460.0,0.00016712,2]
[373152314,1752886240743,-460.0,0.00016712,2]
[373152316,1752886240753,-460.0,0.00016712,2]
[373152318,1752886240763,-460.0,0.00016712,2]
[373152320,1752886240773,-460.0,0.00016712,2]
[373152322,1752886240783,-460.0,0.00016712,2]
[373152325,1752886240792,-460.0,0.00016712,2]
[373152327,1752886240802,-460.0,0.00016712,2]
[373152329,1752886240812,-460.0,0.00016712,2]
[373152330,1752886240821,-460.0,0.00016712,2]
[373152333,1752886240835,-460.0,0.00016712,2]
[373152335,1752886240846,-460.0,0.00016712,2]
[373152337,1752886240855,-460.0,0.00016712,2]
[373152339,1752886240864,-460.0,0.00016712,2]
[373152341,1752886240874,-471.82055495,0.00016712,2]
[373152342,1752886240883,-460.0,0.00016712,2]
[373152345,1752886240894,-367.36623763,0.00016712,2]
[373152346,1752886240904,-460.0,0.00016712,2]
[373152349,1752886240914,-460.0,0.00016712,2]
[373152351,1752886240924,-240.27365925,0.00016712,2]
[373152353,1752886240933,-460.0,0.00016712,2]
[373152355,1752886240943,-460.0,0.00016712,2]
[373152356,1752886240953,-1036.57,0.00016712,2]
[373152358,1752886240964,-460.0,0.00016712,2]
[373152361,1752886240974,-460.0,0.00016712,2]
[373152363,1752886240984,-460.0,0.00016712,2]
[373152365,1752886240993,-460.0,0.00016712,2]
[373152367,1752886241003,-516.59,0.00016712,2]
[373152369,1752886241012,-460.0,0.00016712,2]
[373152371,1752886241021,-214.08823499,0.00016712,2]
[373152373,1752886241031,-1224.83,0.00016712,2]
[373152375,1752886241040,-460.0,0.00016712,2]
[373152377,1752886241051,-460.0,0.00016712,2]
[373152379,1752886241060,-1354.52,0.00016712,2]
[373152381,1752886241069,-460.0,0.00016712,2]
[373152383,1752886241081,-460.0,0.00016712,2]
[373152385,1752886241090,-460.0,0.00016712,2]
[373152387,1752886241100,-460.0,0.00016712,2]
[373152389,1752886241110,-813.15,0.00016712,2]
[373152391,1752886241119,-3359.4,0.00016712,2]
[373152393,1752886241130,-460.0,0.00016712,2]
[373152395,1752886241139,-460.0,0.00016712,2]
[373152397,1752886241149,-465.22202415,0.00016712,2]
[373152399,1752886241158,-460.0,0.00016712,2]
[373152401,1752886241168,-2239.47,0.00016712,2]
[373152403,1752886241178,-460.0,0.00016712,2]
[373152405,1752886241188,-460.0,0.00016712,2]
[373152407,1752886241197,-460.0,0.00016712,2]
[373152409,1752886241207,-460.0,0.00016712,2]
[373152411,1752886241219,-460.0,0.00016712,2]
[373152414,1752886241229,-460.0,0.00016712,2]
[373152416,1752886241239,-1200.61,0.00016712,2]
[373152418,1752886241249,-460.0,0.00016712,2]
[373152420,1752886241259,-460.0,0.00016712,2]
[373152422,1752886241269,-460.0,0.00016712,2]
[373152424,1752886241279,-460.0,0.00016712,2]
[373152426,1752886241288,-460.0,0.00016712,2]
[373152428,1752886241297,-460.0,0.00016712,2]
[373152430,1752886241306,-484.74,0.00016712,2]
[373152432,1752886241316,-460.0,0.00016712,2]
[373152434,1752886241327,-460.0,0.00016712,2]
[373152436,1752886241337,-460.0,0.00016712,2]
[373152438,1752886241347,-616.28,0.00016712,2]
[373152440,1752886241356,-500.0,0.00016712,2]
[373152442,1752886241366,-460.0,0.00016985,2]
[373152444,1752886241377,-460.0,0.00016985,2]
[373152446,1752886241387,-460.0,0.00016985,2]
[373152448,1752886241401,-460.0,0.00016986,2]
[373152450,1752886241411,-460.0,0.00016986,2]
[373152452,1752886241421,-1157.36,0.00016986,2]
[373152454,1752886241430,-460.0,0.00016986,2]
[373152456,1752886241441,-286.94368822,0.00016986,2]
[373152458,1752886241450,-460.0,0.00016986,2]
[373152460,1752886241460,-460.0,0.00016986,2]
[373152461,1752886241471,-460.0,0.00016986,2]
[373152463,1752886241481,-460.0,0.00016986,2]
[373152464,1752886241490,-460.0,0.00016986,2]
[373152465,1752886241500,-460.0,0.00016986,2]
[373152466,1752886241510,-460.0,0.00016986,2]
[373152467,1752886241520,-460.0,0.00016986,2]
[373152468,1752886241529,-460.0,0.00016986,2]
[373152469,1752886241539,-460.0,0.00016986,2]
[373152470,1752886241548,-342.7,0.00016986,2]
[373152471,1752886241558,-460.0,0.00016986,2]
[373152472,1752886241568,-460.0,0.00016986,2]
[373152473,1752886241577,-460.0,0.00016986,2]